bitfinex/quotes_ETHUSD_20240715
["timestamp","ask_amount","ask_price","bid_price","bid_amount"]
[1721048667977,0.25730659,3356.4,3355.7,2.97993]
[1721048668265,0.25730659,3356.4,3355.5,2.98017]
[1721048668266,3.23677659,3356.4,3355.5,2.98017]
[1721048668466,0.25399066,3356.3,3355.6,3.0]
[1721048668675,0.25399066,3356.3,3355.6,5.98009]
[1721048669578,0.25730659,3356.4,3355.7,2.97997]
[1721048669865,2.2826,3356.5,3355.9,5.9595]
[1721048670164,2.2826,3356.5,3356.0,2.9797]
[1721048670474,2.2826,3356.5,3356.1,3.5296]
[1721048670779,2.9788,3357.1,3355.8,0.55]
[1721048670932,2.9788,3357.1,3355.8,3.55]
[1721048671130,8.45685,3357.3,3356.4,2.97929]
[1721048671363,0.845685,3357.2,3356.4,2.97929]
[1721048672034,3.824365,3357.2,3356.5,2.97927]
[1721048673628,0.845685,3357.2,3356.6,2.9792]
[1721048673848,3.824355,3357.2,3356.5,2.97927]
[1721048674184,3.824355,3357.2,3356.3,5.95883]
[1721048674185,3.89883563,3357.2,3356.3,5.95883]
[1721048674373,0.93770356,3357.1,3356.4,3.52936]
[1721048674898,3.91648356,3357.1,3356.4,3.52936]
[1721048675043,5.95795,3356.9,3356.1,2.97961]
[1721048675243,6.03243843,3356.9,3356.1,2.97961]
[1721048675443,2.97904,3356.8,3356.1,2.97961]
[1721048675644,2.3168,3356.7,3355.9,2.97982]
[1721048675844,5.29594,3356.7,3356.0,3.0]
[1721048676163,3.88866799,3356.6,3356.0,3.0]
[1721048676364,3.88866799,3356.6,3355.8,10.25988]
[1721048676365,3.814176,3356.6,3355.9,3.0]
[1721048676567,0.07449378,3356.5,3355.8,7.28]
[1721048676788,0.07449378,3356.5,3355.7,2.97997]
[1721048677091,0.07449378,3356.5,3355.8,2.97988]
[1721048677295,0.98049567,3356.4,3355.8,2.97988]
[1721048677449,0.98049567,3356.4,3355.6,2.98003]
[1721048677450,2.4852,3356.2,3355.6,2.98003]
[1721048677644,2.4852,3356.2,3355.7,0.55]
[1721048678492,2.97966,3356.1,3355.3,2.98031]
[1721048678689,4.0775367,3356.1,3355.4,2.98026]
[1721048680488,2.97974,3356.0,3355.2,2.98038]
[1721048680787,0.07450514,3355.9,3355.3,0.55]
[1721048681265,2.4098,3355.8,3355.3,0.55]
[1721048681451,0.07450519,3355.7,3355.3,0.55]
[1721048681979,0.07450519,3355.7,3355.0,2.98062]
[1721048682180,0.07450519,3355.7,3355.1,3.53053]
[1721048682754,7.02802623,3355.8,3355.1,3.53053]
[1721048683084,0.0745074,3355.7,3355.1,3.53053]
[1721048683284,7.02802623,3355.8,3355.1,3.53053]
[1721048683480,1.02462737,3355.7,3355.1,3.53053]
[1721048683791,0.79609554,3355.7,3355.1,3.53053]
[1721048683997,0.87060301,3355.7,3355.1,0.55]
[1721048684586,1.49255578,3355.7,3355.1,0.55]
[1721048684798,1.49255578,3355.7,3354.9,6.53071]
[1721048685006,4.39806831,3355.7,3354.9,6.53071]
[1721048685150,4.39806831,3355.7,3355.0,2.98062]
[1721048685354,0.79609554,3355.7,3355.0,2.98062]
[1721048685876,1.41804831,3355.7,3355.0,2.98062]
[1721048686077,0.79609554,3355.7,3355.0,2.98062]
[1721048686276,0.22863696,3355.6,3355.0,2.98062]
[1721048686457,4.39805831,3355.7,3355.0,2.98062]
[1721048686652,4.28082674,3355.6,3354.9,3.55]
[1721048686854,2.4307,3355.5,3354.9,0.55]
[1721048687282,2.50521367,3355.5,3354.9,0.55]
[1721048687888,2.4307,3355.5,3354.9,0.55]
[1721048688078,3.05265277,3355.5,3354.9,0.55]
[1721048688271,1.03260513,3355.4,3354.9,0.55]
[1721048688589,1.03260513,3355.4,3354.8,3.0]
[1721048688590,1.42572994,3355.4,3354.8,3.0]
[1721048688753,0.80377717,3355.4,3354.7,2.98088]
[1721048689079,0.62195277,3355.4,3354.9,2.98065]
[1721048689274,3.05265277,3355.5,3355.0,0.55]
[1721048689573,3.05265277,3355.5,3355.1,2.98053]
[1721048689781,3.05265277,3355.5,3355.0,0.55]
[1721048689999,0.85089581,3355.4,3355.0,0.55]
[1721048690289,0.22894304,3355.3,3355.0,0.55]
[1721048690484,0.62195277,3355.4,3355.0,3.53056]
[1721048690697,0.85094101,3355.4,3355.1,2.98052]
[1721048690851,3.98558193,3355.5,3355.1,2.98052]
[1721048691055,0.22896877,3355.4,3355.1,2.98052]
[1721048691306,3.05265277,3355.5,3355.1,2.98052]
[1721048691467,0.85252507,3355.4,3355.1,2.98052]
[1721048691669,0.62354008,3355.5,3355.2,2.98044]
[1721048691869,0.62354008,3355.5,3355.3,2.98035]
[1721048692299,0.22899445,3355.4,3355.1,2.98046]
[1721048692466,0.62354008,3355.3,3355.2,0.55]
[1721048692968,0.85253453,3355.3,3355.2,0.55]
[1721048693673,0.22899445,3355.3,3355.2,0.55]
[1721048694204,1.16439672,3355.3,3355.2,0.55]
[1721048694361,0.2290866,3355.3,3355.2,0.55]
[1721048694561,1.16439672,3355.3,3355.2,0.55]
[1721048694764,0.2290866,3355.3,3355.2,0.55]
[1721048695284,1.16439672,3355.3,3355.2,0.55]
[1721048695487,0.2290866,3355.3,3355.2,0.55]
[1721048695696,1.16439672,3355.3,3355.2,0.55]
[1721048695897,1.16439672,3355.3,3355.0,0.55]
[1721048696219,0.62393215,3355.1,3355.0,3.53062]
[1721048696373,0.62393215,3355.2,3355.0,3.53062]
[1721048696699,0.85301875,3355.1,3355.0,3.53062]
[1721048696898,0.2290866,3355.1,3355.0,3.53062]
[1721048697064,0.62393215,3355.2,3355.1,2.98053]
[1721048697403,0.62400946,3355.2,3355.1,0.55]
[1721048697594,0.62400946,3355.2,3355.0,0.55]
[1721048697793,0.8531897,3355.1,3355.0,0.55]
[1721048698196,0.62400946,3355.1,3354.3,10.26121]
[1721048698404,0.8531897,3355.0,3354.5,2.98098]
[1721048698694,0.22922093,3354.9,3354.7,2.98087]
[1721048698894,0.62400946,3354.9,3354.7,2.98087]
[1721048699396,0.62400946,3355.0,3354.7,2.98087]
[1721048700801,0.85323924,3354.9,3354.7,2.98087]
[1721048700988,2.4119,3354.8,3354.5,2.98098]
[1721048701189,2.4119,3354.8,3354.4,3.0]
[1721048701190,2.4119,3354.8,3354.6,6.53097]
[1721048701382,3.03590946,3354.8,3354.6,3.53097]
[1721048702380,2.4119,3354.8,3354.6,3.53097]
[1721048702583,0.92776992,3354.7,3354.4,3.0]
[1721048702797,2.80909237,3354.8,3354.4,2.9811]
[1721048702998,0.62400427,3354.6,3354.5,3.53107]
[1721048703304,0.62400427,3354.8,3354.7,2.98089]
[1721048703474,0.62400427,3355.1,3355.0,2.98062]
[1721048703676,0.62400427,3355.3,3355.1,2.98046]
[1721048703885,0.62400427,3355.4,3355.2,2.98044]
[1721048704787,0.62400427,3355.4,3355.0,2.98062]
[1721048704788,2.4919,3355.2,3355.0,2.98055]
[1721048705112,2.4919,3355.2,3355.1,0.55]
[1721048705309,3.34487798,3355.2,3355.1,3.53053]
[1721048705681,2.72102867,3355.2,3355.1,3.53053]
[1721048705910,3.1157382,3355.2,3355.1,3.53053]
[1721048706098,2.72103769,3355.2,3355.1,3.53053]
[1721048706414,0.93600641,3355.3,3355.1,3.53053]
[1721048706415,0.6238472,3355.3,3355.2,2.98044]
[1721048706581,0.6238472,3355.4,3355.3,2.98035]
[1721048706782,0.85291248,3355.4,3355.3,2.98035]
[1721048706993,0.85291248,3355.4,3355.2,2.98043]
[1721048707194,0.22906528,3355.3,3355.2,2.98043]
[1721048707486,0.22908486,3355.3,3355.2,0.55]
[1721048707695,0.6238472,3355.3,3354.9,2.98068]
[1721048708011,0.85293206,3355.2,3355.0,2.98058]
[1721048708187,0.85299515,3355.1,3355.0,2.98058]
[1721048708391,0.6238472,3355.1,3355.0,2.98058]
[1721048708589,0.85299515,3355.2,3355.0,2.98058]
[1721048708782,0.2291365,3355.1,3355.0,2.98058]
[1721048709310,0.85298823,3355.2,3355.0,2.98058]
[1721048709608,0.6238472,3355.1,3355.0,2.98058]
[1721048710019,0.22914103,3355.2,3355.0,2.98058]
[1721048710175,0.6238472,3355.3,3355.0,2.98058]
[1721048710383,0.85295963,3355.4,3355.3,2.98035]
[1721048710582,0.85296371,3355.4,3355.3,2.98035]
[1721048710794,0.6238472,3355.4,3355.3,2.98035]
[1721048711192,0.22911651,3355.4,3355.3,2.98035]
[1721048711778,0.93600641,3355.5,3355.3,2.98035]
[1721048712014,0.22914671,3355.4,3355.3,2.98035]
[1721048712392,0.93604164,3355.4,3355.3,2.98035]
[1721048712616,0.2291654,3355.4,3355.3,2.98035]
[1721048715484,2.2698,3355.8,3355.3,2.98035]
[1721048715686,0.93618167,3355.5,3355.3,2.98035]
[1721048716090,0.2291951,3355.4,3355.3,2.98035]
[1721048716603,0.2291951,3355.4,3355.3,3.53035]
[1721048717323,0.85356014,3355.4,3355.3,6.5107]
[1721048717615,0.62436504,3355.5,3355.4,5.96054]
[1721048717839,0.85359308,3355.5,3355.4,6.51054]
[1721048718495,0.22922804,3355.5,3355.4,6.51054]
[1721048718698,0.93618148,3355.6,3355.5,5.96036]
[1721048718699,0.62454102,3355.6,3355.5,5.96036]
[1721048718882,0.62454102,3355.6,3355.5,6.51036]
[1721048718883,0.85379266,3355.6,3355.5,6.51036]
[1721048719082,0.62454102,3355.7,3355.6,5.96018]
[1721048719287,0.93618148,3355.8,3355.7,5.96]
[1721048719506,1.24824198,3356.0,3355.8,2.97991]
[1721048719507,0.93618148,3355.9,3355.8,2.97991]
[1721048719716,1.24824198,3356.0,3355.9,2.97982]
[1721048720003,2.54779673,3356.0,3355.9,3.52982]
[1721048720226,3.32694195,3356.0,3355.9,3.52982]
[1721048720517,2.07709584,3356.0,3355.9,6.50964]
[1721048720735,0.77754109,3356.0,3355.9,6.50964]
[1721048721087,0.77754109,3356.0,3355.9,9.48946]
[1721048721088,0.85417298,3356.0,3355.9,9.48946]
[1721048721388,0.62478631,3356.1,3355.9,6.52982]
[1721048721593,0.85404842,3356.2,3356.0,0.55]
[1721048721795,1.56135256,3356.6,3356.5,2.97925]
[1721048721796,1.56198235,3356.6,3356.5,2.97925]
[1721048722009,3.63882317,3356.6,3356.5,2.97925]
[1721048722911,3.63882317,3356.6,3356.5,3.52925]
[1721048723293,2.07684082,3356.6,3356.5,3.52925]
[1721048723594,2.07684082,3356.6,3356.5,6.50854]
[1721048723920,2.07684082,3356.6,3356.5,3.52925]
[1721048724124,2.67018314,3356.6,3356.2,2.97948]
[1721048724290,2.2946,3356.3,3356.2,2.97948]
[1721048724486,3.07207856,3356.3,3356.0,2.97972]
[1721048724693,0.93671095,3356.1,3356.0,2.97972]
[1721048724888,0.93671095,3356.1,3356.0,5.97972]
[1721048725119,0.93671095,3356.1,3356.0,3.0]
[1721048725295,2.02608313,3356.2,3355.9,3.0]
[1721048725496,1.16587167,3356.1,3355.9,5.97982]
[1721048725702,0.22920761,3356.0,3355.9,5.97982]
[1721048725931,0.22920761,3356.0,3355.9,3.55]
[1721048726436,1.16587167,3356.1,3355.9,6.52982]
[1721048726597,0.22920761,3356.0,3355.9,6.52982]
[1721048726990,0.62435918,3356.0,3355.9,6.52982]
[1721048727196,0.85349129,3356.0,3355.9,6.52982]
[1721048727694,0.22920761,3356.0,3355.9,6.52982]
[1721048728099,0.93666406,3356.1,3355.9,6.52982]
[1721048728293,0.2291574,3356.0,3355.6,2.98008]
[1721048728505,0.62426635,3355.7,3355.6,2.98008]
[1721048728720,0.85342375,3355.7,3355.6,3.53008]
[1721048728924,0.2291574,3355.7,3355.6,3.53008]
[1721048730094,2.86382774,3355.7,3355.2,5.9804]
[1721048730301,0.624298,3355.5,3355.2,2.9804]
[1721048730503,0.624298,3355.5,3355.3,0.55]
[1721048730504,1.16582146,3355.5,3355.3,0.55]
[1721048730817,0.85350483,3355.4,3355.3,0.55]
[1721048731150,0.85350483,3355.4,3354.7,2.98085]
[1721048731151,2.2593,3355.3,3354.7,2.98085]
[1721048731441,0.62438823,3354.8,3354.6,2.98097]
[1721048731807,0.62438823,3354.9,3354.7,2.98081]
[1721048732134,0.93658235,3355.0,3354.5,2.98101]
[1721048732135,0.62438823,3355.0,3354.5,2.98101]
[1721048732335,0.85375842,3354.9,3354.5,2.98101]
[1721048732632,0.85375842,3354.8,3354.6,3.53096]
[1721048732840,0.62438823,3354.9,3354.7,2.98089]
[1721048733001,0.62438823,3354.9,3354.8,0.55]
[1721048733514,0.85377205,3354.9,3354.8,3.5308]
[1721048733719,0.22938382,3354.9,3354.8,3.5308]
[1721048733921,0.62438823,3355.0,3354.9,2.98071]
[1721048734126,0.62438823,3355.0,3354.9,3.53071]
[1721048734535,0.62438823,3355.0,3354.6,2.98095]
[1721048734536,0.22932862,3355.0,3354.6,2.98095]
[1721048734742,0.62438614,3354.9,3354.7,0.55]
[1721048735807,2.272,3354.8,3354.1,10.26134]
[1721048736029,2.272,3354.8,3354.3,2.98122]
[1721048736030,0.85377415,3354.7,3354.3,2.98122]
[1721048736230,0.62438614,3354.6,3354.1,10.26134]
[1721048736435,0.62438614,3354.4,3354.1,10.26134]
[1721048736842,0.22938801,3354.3,3354.1,10.26134]
[1721048737137,0.62438614,3354.4,3354.1,10.26134]
[1721048737337,0.85380363,3354.4,3354.1,2.98134]
[1721048737566,0.62429174,3354.4,3353.8,5.98168]
[1721048737720,0.85371547,3354.3,3353.6,2.98182]
[1721048737901,0.62429174,3354.2,3353.8,2.98163]
[1721048738105,0.85371547,3354.2,3353.9,2.98159]
[1721048738306,0.62429174,3354.2,3353.9,2.98159]
[1721048738539,0.62429174,3354.3,3353.9,2.98159]
[1721048738746,0.22938985,3354.2,3353.9,2.98159]
[1721048738912,0.62429174,3354.3,3353.9,2.98159]
[1721048739239,0.62429174,3354.3,3353.3,5.59609]
[1721048739240,0.62429174,3354.4,3354.2,2.98128]
[1721048739431,0.62429174,3354.4,3354.3,3.53124]
[1721048739631,0.85330856,3354.4,3354.3,0.55]
[1721048740235,0.85330856,3354.4,3354.3,3.53124]
[1721048740754,0.62399783,3354.4,3354.3,3.53124]
[1721048740907,0.8531739,3354.4,3354.0,2.98147]
[1721048741103,0.22927701,3354.3,3354.0,2.98147]
[1721048741329,0.62389689,3354.4,3354.0,2.98147]
[1721048741528,0.62389689,3354.4,3354.1,2.98141]
[1721048742749,2.90069689,3354.5,3354.1,2.98141]
[1721048742931,2.90069689,3354.5,3354.2,2.98132]
[1721048743138,0.2292017,3354.4,3354.2,2.98132]
[1721048743335,2.90069689,3354.5,3354.2,2.98132]
[1721048743534,0.22916951,3354.4,3354.2,2.98132]
[1721048743764,2.90069689,3354.5,3354.2,2.98132]
[1721048744377,0.30367081,3354.4,3354.0,2.98146]
[1721048744663,2.90069689,3354.5,3354.0,2.98146]
[1721048744839,0.2291436,3354.4,3354.0,2.98146]
[1721048745163,2.90069689,3354.5,3354.0,2.98146]
[1721048745658,3.70721949,3354.5,3354.0,2.98146]
[1721048745859,2.90069689,3354.5,3354.0,2.98146]
[1721048746364,2.90069689,3354.5,3354.1,2.9814]
[1721048747461,2.90069689,3354.5,3354.0,2.98146]
[1721048747462,2.2768,3354.5,3354.2,2.98125]
[1721048747829,2.90069689,3354.5,3354.2,2.98125]
[1721048748366,2.2768,3354.5,3354.2,2.98125]
[1721048749842,2.2768,3354.5,3354.0,2.98144]
[1721048750038,2.97523033,3354.5,3354.0,2.98144]
[1721048750238,0.22907106,3354.4,3354.0,2.98144]
[1721048750439,0.22907106,3354.4,3354.1,2.9814]
[1721048750440,0.62389689,3354.4,3354.1,2.9814]
[1721048750654,2.90069689,3354.5,3354.1,2.9814]
[1721048750849,2.2768,3354.5,3354.1,2.9814]
[1721048751060,0.22904252,3354.4,3354.1,2.9814]
[1721048751258,2.89997885,3354.5,3354.1,2.9814]
[1721048751739,0.8522091,3354.4,3354.1,2.9814]
[1721048752047,2.89997885,3354.5,3354.1,2.9814]
[1721048752254,0.85220988,3354.4,3354.1,2.9814]
[1721048752447,2.89997885,3354.5,3354.1,2.9814]
[1721048754164,2.2768,3354.5,3354.1,2.9814]
[1721048754373,2.2768,3354.5,3354.2,2.98132]
[1721048756170,2.2768,3354.5,3354.0,2.98144]
[1721048756171,0.07453419,3354.4,3354.0,2.98144]
[1721048756334,0.07453419,3354.4,3353.9,2.98157]
[1721048756788,0.07453419,3354.4,3354.0,2.98148]
[1721048757008,2.2768,3354.5,3354.0,2.98142]
[1721048757137,2.2768,3354.5,3354.1,2.9814]
[1721048763991,2.2768,3354.5,3354.4,2.98115]
[1721048764544,2.4305,3354.9,3354.6,2.98097]
[1721048765354,2.4305,3354.9,3354.8,2.9808]
[1721048765779,2.4305,3354.9,3354.6,2.9809]
[1721048766362,2.4305,3354.9,3354.7,2.98089]
[1721048767685,2.4305,3354.9,3354.8,2.9808]
[1721048769155,3.28210108,3354.9,3354.8,2.9808]
[1721048769682,2.65952318,3354.9,3354.8,2.9808]
[1721048770188,3.28210108,3354.9,3354.8,2.9808]
[1721048770946,0.85160108,3354.9,3354.8,2.9808]
[1721048771148,0.93386685,3355.0,3354.9,2.98071]
[1721048771376,1.16309138,3355.0,3354.9,2.98071]
[1721048771590,0.85311754,3355.0,3354.9,2.98071]
[1721048772153,0.93386685,3355.1,3355.0,2.98062]
[1721048772441,1.16310514,3355.1,3355.0,2.98062]
[1721048772686,1.16548559,3355.1,3354.8,2.98072]
[1721048772994,3.73958397,3355.2,3355.0,2.98062]
[1721048773288,2.0256788,3355.1,3355.0,2.98062]
[1721048773447,0.77739483,3355.1,3355.0,2.98062]
[1721048774285,2.0256788,3355.1,3355.0,2.98062]
[1721048775358,2.02594679,3355.1,3355.0,2.98062]
[1721048776142,0.77766282,3355.1,3355.0,2.98062]
[1721048778466,0.77776154,3355.1,3355.0,2.98062]
[1721048779498,2.02810608,3355.1,3355.0,2.98062]
[1721048779657,2.02810608,3355.1,3355.0,6.51124]
[1721048780995,2.02810608,3355.1,3355.0,3.53062]
[1721048781169,2.4908,3355.0,3354.4,2.98109]
[1721048781373,2.2838,3354.5,3353.6,7.28]
[1721048781576,2.2838,3354.5,3354.1,2.98141]
[1721048781773,1.25061316,3354.2,3353.7,2.98171]
[1721048782016,0.62531606,3353.9,3353.7,2.98171]
[1721048782504,0.85512746,3353.9,3353.7,2.98171]
[1721048782797,0.2298114,3353.8,3353.7,5.96349]
[1721048782960,0.62531606,3353.9,3353.8,2.98169]
[1721048783162,0.62531606,3354.0,3353.9,2.9816]
[1721048783411,0.85513252,3354.0,3353.9,2.9816]
[1721048784804,0.62531606,3354.0,3353.9,2.9816]
[1721048785676,0.85513137,3354.0,3353.9,2.9816]
[1721048786297,0.85513137,3354.0,3353.9,5.9632]
[1721048786705,0.62531606,3354.1,3354.0,5.96302]
[1721048786911,0.62531606,3354.3,3354.2,5.96266]
[1721048787110,0.7786374,3354.4,3354.3,2.98124]
[1721048787282,0.7786541,3354.4,3354.3,3.53124]
[1721048787625,0.7786541,3354.4,3354.3,6.51248]
[1721048787816,1.16761943,3354.4,3354.3,6.51248]
[1721048788010,1.16761176,3354.4,3354.3,6.51248]
[1721048788522,0.22974553,3354.4,3354.3,6.51248]
[1721048788803,1.16761176,3354.4,3354.3,6.51248]
[1721048789196,1.16761176,3354.4,3354.1,2.98142]
[1721048789431,0.93786623,3354.2,3354.1,2.98142]
[1721048789574,1.16761176,3354.2,3354.1,2.98142]
[1721048789783,0.77870184,3354.2,3354.1,2.98142]
[1721048790003,1.25061316,3354.3,3354.1,2.98142]
[1721048790175,2.2827,3354.1,3353.9,2.98156]
[1721048790506,2.2827,3354.1,3353.7,8.96342]
[1721048790507,1.16771963,3354.0,3353.7,8.96342]
[1721048790710,2.2827,3354.1,3353.8,5.98168]
[1721048790711,0.85503648,3353.9,3353.8,5.98168]
[1721048791203,0.85510768,3353.9,3353.8,5.98168]
[1721048791402,0.85510768,3353.9,3353.8,8.96337]
[1721048791403,0.22981673,3353.9,3353.8,8.96337]
[1721048792003,0.22981673,3353.9,3353.8,9.51337]
[1721048792594,0.62529095,3354.0,3353.9,5.9632]
[1721048792899,0.62529095,3354.0,3353.9,6.5132]
[1721048793275,0.85509444,3354.0,3353.9,6.5132]
[1721048794882,2.4044,3354.4,3354.3,2.98124]
[1721048795082,3.18305652,3354.4,3354.3,2.98124]
[1721048795584,4.48324814,3354.4,3354.3,2.98124]
[1721048795789,5.73377121,3354.4,3354.3,2.98124]
[1721048796381,4.48324814,3354.4,3354.1,2.98135]
[1721048796580,1.25062796,3354.2,3354.1,2.98135]
[1721048796900,1.16766863,3354.2,3354.1,5.96277]
[1721048797299,0.93792176,3354.2,3354.1,5.96277]
[1721048797512,0.2297872,3354.2,3354.1,5.96277]
[1721048797724,0.93792176,3354.3,3354.2,2.98133]
[1721048797893,3.65502796,3354.4,3354.3,2.98124]
[1721048798099,5.73399816,3354.4,3354.3,2.98124]
[1721048798899,5.73394968,3354.4,3354.3,2.98124]
[1721048799928,4.20393065,3354.4,3354.3,2.98124]
[1721048800107,4.20393065,3354.4,3354.3,5.96248]
[1721048801411,5.50411093,3354.4,3354.3,5.96248]
[1721048802032,3.18313689,3354.4,3354.3,5.96248]
[1721048803333,2.95335117,3354.4,3354.3,5.96248]
[1721048806035,2.95335117,3354.4,3354.3,2.98124]
[1721048806631,2.4044,3354.4,3354.3,2.98124]
[1721048807039,3.18309366,3354.4,3354.3,2.98124]
[1721048807237,3.18309366,3354.4,3354.2,2.98129]
[1721048807444,3.18309366,3354.4,3353.9,0.55]
[1721048807445,2.3744,3354.2,3353.9,2.98157]
[1721048807737,0.93804056,3354.0,3353.9,2.98157]
[1721048807941,0.93804056,3354.0,3353.8,3.0]
[1721048808239,2.2991,3353.8,3353.5,2.98195]
[1721048808408,2.2991,3353.8,3353.3,2.9821]
[1721048808409,0.85516012,3353.7,3353.3,2.9821]
[1721048808737,2.07939262,3353.7,3353.4,2.98203]
[1721048809239,3.32992148,3353.7,3353.4,2.98203]
[1721048809938,3.10015612,3353.7,3353.6,10.26187]
[1721048810117,2.07953042,3353.7,3353.6,10.26187]
[1721048810434,3.33008741,3353.7,3353.6,10.26187]
[1721048810633,0.77906304,3353.7,3353.6,10.26187]
[1721048810839,1.16752707,3353.7,3353.6,10.26187]
[1721048811837,1.16752707,3353.7,3353.6,2.98187]
[1721048812205,0.22990316,3353.7,3353.6,2.98187]
[1721048813003,0.22990316,3353.7,3353.6,5.96374]
[1721048813200,3.23672391,3353.8,3353.7,2.98178]
[1721048813402,3.4664505,3353.8,3353.7,2.98178]
[1721048813604,0.93762391,3353.8,3353.7,2.98178]
[1721048813800,0.9371106,3354.0,3353.8,2.9816]
[1721048814108,0.85435706,3353.9,3353.8,2.9816]
[1721048814821,0.22965533,3353.9,3353.8,5.96329]
[1721048815005,0.62470173,3354.0,3353.9,5.9632]
[1721048815206,0.62470173,3354.1,3353.9,0.55]
[1721048815434,0.62470173,3354.1,3353.8,0.55]
[1721048815641,0.62470173,3354.1,3353.9,0.55]
[1721048816039,0.62470173,3354.1,3354.0,5.96302]
[1721048816366,0.62470173,3354.2,3354.1,5.96284]
[1721048816563,0.62470173,3354.3,3354.2,5.96266]
[1721048816768,2.4149,3354.4,3354.3,5.96248]
[1721048817064,2.64443949,3354.4,3354.3,5.96248]
[1721048817265,3.58155009,3354.4,3354.3,5.96248]
[1721048817960,2.64443949,3354.4,3354.3,5.96248]
[1721048818159,3.58155009,3354.4,3354.3,5.96248]
[1721048818459,3.58159074,3354.4,3354.3,5.96248]
[1721048819561,3.19305531,3354.4,3354.3,5.96248]
[1721048819766,3.19305531,3354.4,3354.3,2.98124]
[1721048820067,3.5817397,3354.4,3354.3,2.98124]
[1721048820235,3.19308283,3354.4,3354.3,2.98124]
[1721048820435,3.58178226,3354.4,3354.3,2.98124]
[1721048820764,2.64452091,3354.4,3354.3,2.98124]
[1721048820961,3.58178226,3354.4,3354.3,2.98124]
[1721048821548,0.22962091,3354.4,3354.3,5.96248]
[1721048821870,0.93726135,3354.5,3354.4,2.98115]
[1721048823269,0.93726135,3354.5,3354.4,2.99365]
[1721048823768,1.16686743,3354.5,3354.4,2.99365]
[1721048823967,0.93726135,3354.5,3354.4,2.99365]
[1721048824191,1.167163,3354.5,3354.4,2.99365]
[1721048824342,0.77838371,3354.5,3354.4,2.99365]
[1721048825036,0.77849044,3354.5,3354.4,0.0125]
[1721048825361,5.15214934,3354.5,3354.4,0.0125]
[1721048825550,6.11742902,3354.5,3354.4,0.0125]
[1721048825745,6.1175665,3354.5,3354.4,0.0125]
[1721048827148,4.55428677,3354.5,3354.4,0.0125]
[1721048827468,4.55428677,3354.5,3354.4,2.99365]
[1721048827690,5.80546053,3354.5,3354.4,2.99365]
[1721048828174,6.11830141,3354.5,3354.4,2.99365]
[1721048828372,4.55421053,3354.5,3354.4,2.99365]
[1721048828574,5.80534994,3354.5,3354.4,2.99365]
[1721048828739,4.55418735,3354.5,3354.4,2.99365]
[1721048829071,5.80532676,3354.5,3354.4,2.99365]
[1721048829770,5.80532676,3354.5,3354.4,0.0125]
[1721048829771,6.11811161,3354.5,3354.4,0.0125]
[1721048829937,6.19939933,3354.5,3354.4,0.0125]
[1721048830138,8.07610845,3354.5,3354.4,0.0125]
[1721048830367,6.19939933,3354.5,3354.4,0.0125]
[1721048830540,6.27393377,3354.5,3354.4,0.0125]
[1721048830738,8.07610845,3354.5,3354.4,0.0125]
[1721048831450,6.77615447,3354.5,3354.4,0.0125]
[1721048831653,8.07644896,3354.5,3354.4,0.0125]
[1721048832484,9.1807102,3354.5,3354.4,0.0125]
[1721048832647,6.1996402,3354.5,3354.4,0.0125]
[1721048833504,5.36136312,3354.5,3354.4,0.0125]
[1721048834715,3.83112087,3354.5,3354.4,0.0125]
[1721048834872,6.1995803,3354.5,3354.4,0.0125]
[1721048835055,5.36133042,3354.5,3354.4,0.0125]
[1721048835350,9.25527437,3354.5,3354.4,0.0125]
[1721048835555,12.23634437,3354.5,3354.4,0.0125]
[1721048835750,14.42599736,3354.5,3354.4,0.0125]
[1721048835985,12.23634437,3354.5,3354.4,0.00879448]
[1721048836183,20.47685594,3354.5,3354.4,0.00879448]
[1721048836384,2.4286,3353.6,3352.9,2.98242]
[1721048836551,0.93858523,3353.1,3352.9,2.98242]
[1721048836757,1.25144697,3353.3,3352.3,10.26298]
[1721048836758,4.89784882,3353.0,3352.3,10.26298]
[1721048837091,3.33153407,3352.9,3352.7,2.98267]
[1721048837285,0.22994158,3352.8,3352.7,2.98267]
[1721048837589,0.62537285,3352.8,3352.7,2.98267]
[1721048838094,1.16780466,3352.8,3352.7,2.98267]
[1721048838277,0.62509135,3352.8,3352.7,2.98267]
[1721048838468,0.85467198,3352.8,3352.7,2.98267]
[1721048839063,1.16769217,3352.8,3352.7,2.98267]
[1721048839370,0.22958063,3352.8,3352.7,2.98267]
[1721048839596,0.6247731,3352.8,3352.7,2.98267]
[1721048839799,0.22958063,3352.8,3352.7,2.98267]
[1721048840099,0.6247731,3352.9,3352.8,2.98258]
[1721048840295,0.22940011,3352.9,3352.8,2.98258]
[1721048840903,0.6247731,3353.0,3352.8,2.98258]
[1721048841093,0.22938991,3352.9,3352.8,2.98258]
[1721048841267,0.6247731,3353.0,3352.8,2.98258]
[1721048841464,0.6247731,3353.0,3352.7,2.98267]
[1721048841670,3.36671154,3353.3,3353.1,2.98231]
[1721048841872,0.8536636,3353.2,3353.1,2.98231]
[1721048842072,3.05297023,3353.3,3353.1,2.98231]
[1721048842267,0.22923263,3353.2,3353.1,2.98231]
[1721048842472,0.85360507,3353.2,3353.1,2.98231]
[1721048843102,0.22923484,3353.2,3353.1,2.98231]
[1721048844005,0.85360507,3353.2,3353.1,2.98231]
[1721048844232,0.62437023,3353.2,3353.1,2.98231]
[1721048844376,0.62421388,3353.4,3353.3,2.98213]
[1721048844712,0.93632083,3353.5,3353.3,2.98213]
[1721048844911,0.2291658,3353.4,3353.3,2.98213]
[1721048845112,0.2291658,3353.4,3353.1,2.98231]
[1721048845323,0.2291658,3353.4,3353.2,2.9822]
[1721048845324,0.62412316,3353.3,3353.2,2.9822]
[1721048845617,0.62414056,3353.3,3353.2,2.9822]
[1721048845815,0.85330636,3353.3,3353.2,2.9822]
[1721048846781,0.2291658,3353.3,3353.2,2.9822]
[1721048847523,0.62414056,3353.4,3353.3,2.98213]
[1721048847825,0.85329209,3353.4,3353.3,2.98213]
[1721048849104,0.85329209,3353.4,3353.1,2.98223]
[1721048849303,0.85326424,3353.3,3353.1,2.98223]
[1721048849607,0.22915153,3353.2,3353.1,2.98223]